bitfinex-derivatives/quotes_ETHF0:USTF0_20250530
["timestamp","ask_amount","ask_price","bid_price","bid_amount"]
[1748595525051,3.97111,2619.2,2619.1,0.76332]
[1748595525858,3.2078,2619.2,2619.1,4.62932]
[1748595526452,3.97109,2619.2,2619.1,4.62932]
[1748595526651,3.2078,2619.2,2619.1,4.62932]
[1748595526851,3.97109,2619.2,2619.1,4.62932]
[1748595527655,3.97109,2619.2,2619.1,0.76332]
[1748595527954,0.76335,2619.1,2619.0,0.76333]
[1748595528152,0.76338,2619.0,2618.9,0.76337]
[1748595528350,0.76338,2619.0,2618.9,4.62937]
[1748595529161,0.76342,2618.8,2618.7,0.7634]
[1748595529353,0.76339,2618.9,2618.8,0.76338]
[1748595529555,0.7634,2618.8,2618.7,4.62941]
[1748595533058,0.7634,2618.8,2618.7,3.866]
[1748595534051,0.7634,2618.8,2618.7,4.62943]
[1748595534453,1.402,2618.8,2618.7,4.62943]
[1748595534949,1.37139,2618.9,2618.8,0.7634]
[1748595536257,0.7634,2618.8,2618.7,4.62941]
[1748595536860,0.7634,2618.8,2618.7,3.866]
[1748595537058,2.0925,2618.8,2618.7,3.866]
[1748595539257,3.1288102,2618.8,2618.7,3.866]
[1748595541065,3.1285699,2618.8,2618.7,3.866]
[1748595542067,3.1285699,2618.8,2618.7,4.62943]
[1748595542262,2.3651699,2618.8,2618.7,4.62943]
[1748595542568,1.3291,2618.8,2618.7,4.62943]
[1748595543366,2.0925,2618.8,2618.7,4.62943]
[1748595544463,2.0925,2618.8,2618.7,3.866]
[1748595545668,2.0925,2618.8,2618.7,4.62943]
[1748595546761,1.3291,2618.8,2618.7,4.62943]
[1748595547468,1.52,2618.8,2618.7,4.62943]
[1748595547872,0.1909,2618.8,2618.7,4.62943]
[1748595548569,0.9543,2618.8,2618.7,4.62943]
[1748595548768,2.2893,2618.8,2618.7,4.62943]
[1748595549272,1.5259,2618.8,2618.7,4.62943]
[1748595550170,1.5259,2618.8,2618.7,5.21993]
[1748595551481,2.2893,2618.8,2618.7,5.21993]
[1748595552270,2.2893,2618.8,2618.7,3.859]
[1748595552761,2.919,2618.8,2618.7,3.859]
[1748595554373,3.95896333,2618.8,2618.7,3.859]
[1748595557681,3.95930186,2618.8,2618.7,3.859]
[1748595559175,3.19590186,2618.8,2618.7,4.62243]
[1748595559474,2.56620186,2618.8,2618.7,4.62243]
[1748595560275,1.23120186,2618.8,2618.7,4.62243]
[1748595560573,0.1909,2618.8,2618.7,4.62243]
[1748595562377,3.2078,2619.3,2619.2,0.76329]
[1748595562574,3.2078,2619.3,2619.2,4.62229]
[1748595562773,4.4202,2619.3,2619.2,4.62229]
[1748595563073,5.18346,2619.3,2619.2,4.62229]
[1748595563272,4.4202,2619.3,2619.2,4.62229]
[1748595563472,5.18346,2619.3,2619.2,3.859]
[1748595563676,5.84076,2619.3,2619.2,3.859]
[1748595566278,6.87981871,2619.3,2619.2,3.859]
[1748595566478,5.84076,2619.3,2619.2,3.859]
[1748595567179,5.84076,2619.3,2619.2,4.62229]
[1748595568377,5.0775,2619.3,2619.2,4.62229]
[1748595568979,5.84076,2619.3,2619.2,4.62229]
[1748595569177,5.0775,2619.3,2619.2,4.62229]
[1748595569382,3.2078,2619.3,2619.2,4.62229]
[1748595571681,1.3224,2619.5,2619.4,0.76323]
[1748595572283,2.0856,2619.5,2619.4,0.76323]
[1748595573382,0.76326,2619.3,2619.2,4.62226]
[1748595573585,0.76326,2619.3,2619.2,0.76326]
[1748595573786,0.76326,2619.3,2619.2,4.62226]
[1748595573981,1.38846,2619.3,2619.2,4.62226]
[1748595574174,1.38846,2619.3,2619.2,0.76326]
[1748595574484,1.38846,2619.3,2619.2,3.858]
[1748595574678,3.24586,2619.3,2619.2,3.858]
[1748595574984,3.24586,2619.3,2619.2,4.62129]
[1748595575480,2.4826,2619.3,2619.0,3.851]
[1748595575684,3.97114,2619.1,2619.0,4.61434]
[1748595576085,3.2078,2619.1,2619.0,4.61434]
[1748595576388,3.97112,2619.1,2619.0,4.61434]
[1748595576586,3.2078,2619.1,2619.0,4.61434]
[1748595577092,3.97112,2619.1,2619.0,4.61434]
[1748595577483,3.2078,2619.1,2619.0,4.61434]
[1748595577688,1.2213,2619.2,2619.1,0.76332]
[1748595578783,0.76332,2619.1,2619.0,4.61433]
[1748595578987,0.76332,2619.1,2619.0,3.851]
[1748595579492,3.97112,2619.1,2619.0,3.851]
[1748595579789,3.2078,2619.1,2618.6,0.5901]
[1748595579989,3.2078,2619.1,2618.4,42.5901]
[1748595579990,0.76342,2618.8,2618.7,3.851]
[1748595580787,2.66922,2618.8,2618.7,3.851]
[1748595581086,2.66922,2618.8,2618.7,4.61443]
[1748595581594,2.66922,2618.8,2618.7,3.851]
[1748595583294,5.87702,2618.8,2618.7,3.851]
[1748595585486,0.76349,2618.5,2618.4,3.851]
[1748595585687,0.76361,2618.1,2617.8,3.2078]
[1748595585989,0.76361,2618.1,2618.0,3.85672661]
[1748595586291,0.76361,2618.1,2618.0,0.00572661]
[1748595586491,1.99951,2618.1,2618.0,0.00572661]
[1748595588389,1.2359,2618.1,2618.0,0.00572661]
[1748595588592,1.2359,2618.1,2618.0,0.76935661]
[1748595588993,1.99951,2618.1,2618.0,0.76935661]
[1748595589188,1.99951,2618.1,2618.0,0.00572661]
[1748595590993,1.99951,2618.1,2618.0,0.76936661]
[1748595590994,1.2359,2618.1,2618.0,0.76936661]
[1748595591196,1.99951,2618.1,2618.0,0.76936661]
[1748595594390,1.99951,2618.1,2618.0,0.00572661]
[1748595596698,1.99951,2618.1,2618.0,0.76936661]
[1748595597800,1.99951,2618.1,2618.0,0.00572661]
[1748595599606,1.99951,2618.1,2618.0,0.76936661]
[1748595600394,1.99951,2618.1,2618.0,0.00572661]
[1748595600599,1.2359,2618.1,2618.0,0.76936661]
[1748595601003,1.2359,2618.1,2618.0,1.36006661]
[1748595601396,1.99951,2618.1,2618.0,0.76936661]
[1748595601603,1.99951,2618.1,2618.0,4.62136661]
[1748595601802,1.8838,2618.1,2618.0,4.62136661]
[1748595601998,2.64741,2618.1,2618.0,4.62136661]
[1748595602997,1.8838,2618.1,2618.0,4.62136661]
[1748595606394,0.1909,2618.1,2618.0,4.62136661]
[1748595607001,0.1909,2618.1,2618.0,5.51206661]
[1748595609793,0.00572661,2618.3,2618.2,0.76358]
[1748595612703,0.00572661,2618.3,2618.2,1.65468]
[1748595612901,1.2525,2618.6,2618.5,0.76349]
[1748595613106,1.2525,2618.6,2618.5,4.60849]
[1748595613903,2.01596,2618.6,2618.5,3.845]
[1748595614109,1.2525,2618.6,2618.5,4.60849]
[1748595618411,0.00572661,2618.8,2618.7,0.76343]
[1748595618806,1.28842661,2618.8,2618.7,0.76343]
[1748595619514,2.05182661,2618.8,2618.7,0.76343]
[1748595620510,0.76345,2618.7,2618.6,0.76344]
[1748595620709,2.01435,2618.7,2618.6,0.76344]
[1748595621004,2.01434,2618.7,2618.1,6.34467]
[1748595621309,1.2509,2618.6,2618.1,3.845]
[1748595621615,0.6398,2618.5,2618.4,0.76352]
[1748595621910,1.2933,2618.5,2618.4,0.76352]
[1748595622113,2.6046,2618.5,2618.4,0.76352]
[1748595622713,2.6046,2618.5,2618.3,0.76353]
[1748595623014,5.28264,2618.4,2618.3,0.76355]
[1748595623207,0.76358,2618.2,2618.1,4.60861]
[1748595623407,1.3113,2618.3,2618.2,0.76358]
[1748595624406,1.3113,2618.3,2618.1,4.60858]
[1748595624608,0.76358,2618.2,2618.1,4.60858]
[1748595625004,0.76358,2618.2,2618.1,3.845]
[1748595625506,0.76358,2618.2,2618.1,4.60861]
[1748595625815,0.76358,2618.2,2618.1,3.845]
[1748595626309,0.76358,2618.2,2618.1,4.60861]
[1748595626509,0.76358,2618.2,2618.1,3.845]
[1748595629910,2.07486,2618.3,2618.2,0.76358]
[1748595631515,1.3113,2618.3,2618.2,0.76358]
[1748595632817,3.2078,2618.4,2618.3,0.76355]
[1748595634018,3.2078,2618.4,2618.3,1.35405]
[1748595634910,3.2078,2618.4,2618.3,0.76355]
[1748595635116,3.2078,2618.4,2618.3,4.60855]
[1748595635513,1.2964,2618.4,2618.3,4.60855]
[1748595635916,2.05992,2618.4,2618.3,4.60855]
[1748595636719,1.2964,2618.4,2618.3,4.60855]
[1748595637018,2.05992,2618.4,2618.3,4.60855]
[1748595637220,1.2964,2618.4,2618.3,4.60855]
[1748595638014,4.60793,2618.7,2618.6,0.76346]
[1748595638215,1.67727336,2618.7,2618.6,0.76346]
[1748595638415,0.6367,2618.7,2618.6,0.76346]
[1748595639415,2.69563,2618.7,2618.6,0.76346]
[1748595640724,1.9322,2618.7,2618.6,0.76346]
[1748595641023,2.69563,2618.7,2618.6,0.76346]
[1748595642015,1.9322,2618.7,2618.6,0.76346]
[1748595642215,1.9322,2618.7,2618.4,0.5905]
[1748595642216,1.9322,2618.7,2618.5,0.76348]
[1748595642418,1.3174,2618.6,2618.5,0.76348]
[1748595643323,2.08089,2618.6,2618.5,0.76348]
[1748595645731,1.3174,2618.6,2618.5,0.76348]
[1748595646439,0.00572661,2618.8,2618.7,0.76343]
[1748595646633,2.03242661,2618.8,2618.7,4.60243]
[1748595650539,1.26902661,2618.8,2618.7,4.60243]
[1748595650936,2.03242661,2618.8,2618.7,4.60243]
[1748595651843,0.76347,2618.7,2618.6,0.76344]
[1748595652139,2.03487,2618.7,2618.6,4.60244]
[1748595655142,1.2714,2618.7,2618.6,4.60244]
[1748595655534,0.00572661,2618.8,2618.7,0.76343]
[1748595655837,0.00572661,2618.8,2618.7,1.35373]
[1748595656942,1.25842661,2618.8,2618.7,1.35373]
[1748595659141,1.25842661,2618.8,2618.7,0.76343]
[1748595660134,0.00572661,2618.8,2618.7,0.76343]
[1748595660745,0.00572661,2618.8,2618.7,1.65353]
[1748595660935,1.2439,2619.3,2619.2,0.76329]
[1748595661141,3.2078,2619.5,2619.4,0.76323]
[1748595661548,3.971,2619.5,2619.4,0.76323]
[1748595661748,3.2078,2619.5,2619.4,0.76323]
[1748595662146,4.46,2619.5,2619.4,0.76323]
[1748595662839,1.2522,2619.5,2619.4,0.76323]
[1748595663040,0.00572661,2619.7,2619.6,0.76317]
[1748595663237,0.00572661,2619.7,2619.6,4.60117]
[1748595665842,0.00572661,2619.7,2619.6,5.49097]
[1748595667141,0.00572661,2619.7,2619.6,4.60117]
[1748595669049,0.00572661,2619.7,2619.6,5.49077]
[1748595669853,0.00572661,2619.7,2619.6,6.14287]
[1748595670044,0.00572661,2619.7,2619.6,5.25327]
[1748595671143,0.00572661,2619.7,2619.6,6.14287]
[1748595672738,0.00572661,2619.7,2619.6,5.25327]
[1748595672944,0.00572661,2619.7,2619.6,4.60117]
[1748595674240,0.00572661,2619.7,2619.4,0.00572661]
[1748595674438,0.00572661,2619.7,2619.6,3.83]
[1748595674643,1.33512661,2619.7,2619.6,4.59317]
[1748595674944,1.95312661,2619.7,2619.6,4.59317]
[1748595675451,1.95312661,2619.7,2619.6,3.83]
[1748595675748,2.71626661,2619.7,2619.6,3.83]
[1748595676247,1.95312661,2619.7,2619.6,4.59317]
[1748595676448,2.71626661,2619.7,2619.6,3.83]
[1748595676654,2.71626661,2619.7,2619.6,4.59317]
[1748595677248,2.71626661,2619.7,2619.6,3.83]
[1748595678250,2.90706661,2619.7,2619.6,3.83]
[1748595678848,2.90706661,2619.7,2619.6,4.59317]
[1748595679852,2.90706661,2619.7,2619.6,3.83]
[1748595680751,0.6116,2620.0,2619.6,4.59317]
[1748595680950,0.6116,2620.0,2619.9,0.76308]
[1748595681150,3.9706,2620.9,2620.1,1.9075]
[1748595681345,0.76289,2620.6,2620.2,3.83]
[1748595681557,0.76287,2620.7,2620.3,3.83]
[1748595681950,3.2078,2620.6,2620.3,3.83]
[1748595682150,0.76291,2620.5,2620.3,4.59295]
[1748595682654,0.76291,2620.5,2620.4,0.76294]
[1748595682952,0.95371,2620.5,2620.4,0.76294]
[1748595683548,0.1908,2620.5,2620.4,0.76294]
[1748595683953,2.149,2620.5,2620.4,0.76294]
[1748595685551,0.1908,2620.5,2620.4,0.76294]
[1748595688054,0.00572661,2620.8,2620.7,0.76285]
[1748595688364,0.76854661,2620.8,2620.7,3.83]
[1748595688557,2.76234661,2620.8,2620.7,3.83]
[1748595691557,0.00572661,2620.8,2620.7,4.59285]
[1748595692256,6.61e-06,2620.8,2620.7,5.81755]
[1748595692463,3.2078,2622.1,2620.8,1.90705]
[1748595692659,1.4199,2621.6,2621.4,3.2078]
[1748595692860,1.4199,2621.6,2621.5,3.829]
[1748595693064,0.6573,2621.6,2621.5,3.829]
[1748595693257,1.41989,2621.6,2621.5,3.829]
[1748595695765,0.76264,2621.4,2621.3,0.00572661]
[1748595696464,5.76264,2621.4,2621.3,0.00572661]
[1748595697572,6.98834,2621.4,2621.3,0.00572661]
[1748595698972,1.98834,2621.4,2621.3,0.00572661]
[1748595703178,6.98834,2621.4,2621.3,0.00572661]
[1748595703369,1.98834,2621.4,2621.3,0.00572661]
[1748595703569,6.98834,2621.4,2621.3,0.00572661]
[1748595705176,8.04153268,2621.4,2621.3,0.00572661]
[1748595705473,6.98834,2621.4,2621.3,0.00572661]
[1748595707279,8.04216972,2621.4,2621.3,0.00572661]
[1748595708485,3.04216972,2621.4,2621.3,0.00572661]
[1748595708685,0.76282,2620.8,2620.7,0.6622]
[1748595708889,0.76288,2620.6,2620.5,7.7927]
[1748595710383,0.76288,2620.6,2620.5,9.0903]
[1748595710691,0.76287,2620.7,2620.6,0.76285]
[1748595711184,0.76287,2620.7,2620.6,2.06045]
[1748595712986,0.76287,2620.7,2620.6,1.2976]
[1748595713385,0.76287,2620.7,2620.6,2.06048]
[1748595715293,0.76283,2620.9,2620.8,0.7628]
[1748595715793,1.81980931,2620.9,2620.8,0.7628]
[1748595716092,1.81980931,2620.9,2620.8,0.6515]
[1748595717691,1.81980931,2620.9,2620.8,2.68492]
[1748595717894,0.76283,2620.9,2620.8,2.68492]
[1748595719490,0.76278,2621.0,2620.9,0.76276]
[1748595719686,0.76278,2621.0,2620.9,5.83978]
[1748595719687,0.76276,2621.0,2620.9,5.83978]
[1748595719884,1.81961382,2621.0,2620.9,5.83978]
[1748595720695,1.05685382,2621.0,2620.9,5.83978]
[1748595720997,0.76272,2621.2,2621.1,0.7627]
[1748595721799,3.2078,2621.4,2621.0,1.255]
[1748595721800,3.97047,2621.4,2621.3,0.76267]
[1748595721992,3.2078,2621.4,2621.3,4.58467]
[1748595722594,3.97044,2621.4,2621.3,4.58467]
[1748595722791,3.2078,2621.4,2621.3,4.58467]
[1748595723200,3.2078,2621.4,2621.3,5.88247]
[1748595723993,3.27773857,2621.4,2621.3,5.88247]
[1748595724196,0.06993857,2621.4,2621.3,5.88247]
[1748595725095,0.83257857,2621.4,2621.3,5.1198]
[1748595725298,0.00572661,2621.8,2621.7,0.76256]
[1748595725497,0.00572661,2621.8,2621.7,4.58456]
[1748595726401,0.00572661,2621.8,2621.7,6.53696]
[1748595728793,0.76241,2622.3,2622.2,0.76238]
[1748595729004,0.76241,2622.3,2622.2,4.57938]
[1748595729606,3.8151,2622.4,2622.2,4.57938]
[1748595729607,4.57748,2622.4,2622.3,0.76238]
[1748595729898,0.00572661,2622.6,2622.5,0.76232]
[1748595730309,0.00572661,2622.6,2622.5,1.97732]
[1748595731701,1.42113,2623.2,2623.1,0.76215]
[1748595732013,0.659,2623.2,2623.0,3.817]
[1748595732211,1.42112,2623.2,2623.1,3.817]
[1748595732500,2.63632,2623.2,2623.1,3.817]
[1748595732701,1.42112,2623.2,2623.1,3.817]
[1748595733405,2.63632,2623.2,2623.1,3.817]
[1748595733606,0.76224,2622.8,2622.7,3.2078]
[1748595733900,0.76224,2622.8,2622.7,3.816]
[1748595735103,0.76224,2622.8,2622.7,4.57827]
[1748595735310,0.76224,2622.8,2622.7,3.816]
[1748595737199,0.76229,2622.6,2622.5,0.76232]
[1748595737407,0.76229,2622.6,2622.5,3.816]
[1748595737903,0.6313,2622.7,2622.6,0.76229]
[1748595738100,4.63209,2623.0,2622.9,0.76221]
[1748595738305,0.76215,2623.1,2623.0,0.76218]
[1748595739312,1.8965,2623.3,2622.9,3.816]
[1748595739508,2.65859,2623.3,2623.2,0.76212]
[1748595740012,0.76212,2623.2,2623.1,3.96993]
[1748595740414,0.62649179,2623.4,2623.1,3.2078]
[1748595740710,0.76585179,2623.4,2623.3,0.76209]
[1748595740911,0.76585179,2623.4,2623.3,3.816]
[1748595741312,3.97365179,2623.4,2623.3,3.816]
[1748595742014,3.97365179,2623.4,2622.5,0.6048]
[1748595742015,0.76229,2622.6,2622.5,3.9701]
[1748595742316,0.76229,2622.6,2622.5,7.7851]
[1748595742514,0.76229,2622.6,2622.5,7.0228]
[1748595743005,0.76229,2622.6,2622.5,7.78512]
[1748595744009,0.76238,2622.4,2622.2,4.511]
[1748595744217,0.76238,2622.4,2622.3,4.57736]
[1748595745127,1.2899,2622.7,2622.3,3.815]
[1748595745418,0.76235,2622.4,2622.3,4.57737]
[1748595745717,0.76235,2622.4,2622.3,3.815]
[1748595746019,0.76235,2622.4,2622.3,4.57738]
[1748595746407,3.1956,2622.7,2622.4,0.76234]
[1748595746408,0.76234,2622.5,2622.4,0.76234]
[1748595747618,1.2899,2622.7,2622.3,3.815]
[1748595747822,0.76231,2622.6,2622.5,0.7623]
[1748595748120,0.76234,2622.5,2622.4,0.76234]
[1748595749122,0.76235,2622.4,2622.3,4.57737]
[1748595749323,0.76235,2622.4,2622.3,3.815]
[1748595749524,1.2899,2622.7,2622.3,3.815]
[1748595749720,0.76234,2622.5,2622.4,0.76233]
[1748595750723,2.05218,2622.7,2622.6,0.7623]
[1748595750917,0.76231,2622.6,2622.5,0.7623]
[1748595751322,2.05218,2622.7,2622.6,0.76229]
[1748595751515,0.76233,2622.6,2622.5,0.76231]
[1748595752122,2.05219,2622.7,2622.6,0.76229]
[1748595752426,2.05217,2622.7,2622.6,0.76229]
[1748595752625,2.05217,2622.7,2622.4,1.223]
[1748595752626,1.2899,2622.7,2622.4,1.223]
[1748595752827,0.76232,2622.5,2622.4,1.98535]
[1748595753124,0.76232,2622.5,2622.4,0.76235]
[1748595753723,0.76235,2622.4,2622.3,0.6358]
[1748595753922,2.02935,2622.4,2622.3,3.815]
[1748595754523,0.76241,2622.2,2622.1,0.00572661]
[1748595754920,6.81703471,2622.2,2622.1,0.00572661]
[1748595755125,8.08403471,2622.2,2622.1,0.00572661]
[1748595756424,11.13372471,2622.2,2621.3,3.2078]
[1748595756728,11.13372471,2622.2,2621.3,3.97047]
[1748595756729,0.76264,2621.4,2621.3,3.97047]
[1748595756919,0.76264,2621.4,2621.3,7.78647]
[1748595758129,0.76264,2621.4,2621.3,7.0238]
[1748595758631,0.76264,2621.4,2621.3,7.78647]
[1748595760332,0.76264,2621.4,2621.3,7.0238]
[1748595760832,0.76264,2621.4,2621.3,7.78647]
[1748595762131,0.76264,2621.4,2621.3,7.0238]
[1748595762331,0.76264,2621.4,2621.3,7.78647]
[1748595762728,1.28712661,2621.6,2621.5,0.76261]
[1748595762934,0.00572661,2621.6,2621.5,0.76261]
[1748595764534,0.76831661,2621.6,2621.5,0.76261]
[1748595767132,0.00572661,2621.6,2621.5,0.76261]
[1748595768231,3.2078,2622.0,2621.9,0.7625]
[1748595768851,0.7625,2621.9,2621.8,4.57451]
[1748595769029,0.7625,2621.9,2621.8,3.812]
[1748595770141,0.7625,2621.9,2621.8,4.57453]
[1748595770643,0.00379179,2622.1,2622.0,0.76247]
[1748595771334,3.2078,2622.7,2622.6,0.76229]
[1748595771538,0.76232,2622.5,2622.4,4.57434]
[1748595771732,0.76235,2622.4,2622.3,2.69427]
[1748595771932,0.76235,2622.4,2622.3,5.7439]
[1748595772442,0.76235,2622.4,2622.3,5.23848]
[1748595773241,0.76234,2622.5,2622.4,0.76233]
[1748595773440,0.76235,2622.4,2622.3,5.23846]
[1748595774141,0.76235,2622.4,2622.3,1.42646]
[1748595774340,0.76235,2622.4,2622.3,5.23846]
[1748595774538,0.76234,2622.5,2622.3,5.23846]
[1748595774840,0.76234,2622.5,2622.4,0.76235]
[1748595775541,0.76216,2623.1,2623.0,0.76216]
[1748595775738,3.2078,2623.3,2622.9,0.76219]
[1748595775739,0.76219,2623.0,2622.9,0.76219]
[1748595776042,2.07529,2623.0,2622.9,0.76219]
[1748595777442,1.3131,2623.0,2622.8,7.02552661]
[1748595777638,1.3131,2623.0,2622.9,0.76221]
[1748595777840,2.02384,2623.2,2623.1,0.76215]
[1748595778034,1.2617,2623.2,2623.1,0.76215]
[1748595778746,0.76213,2623.2,2623.1,0.76212]
[1748595779047,1.2419,2623.2,2623.1,0.76212]
[1748595780549,5.1127,2623.8,2623.1,3.812]
[1748595780844,0.76211,2623.3,2623.2,0.7621]
[1748595781747,0.76212,2623.2,2623.1,4.57413]
[1748595781949,2.01072,2623.2,2623.1,4.57413]
[1748595782450,0.76215,2623.1,2623.0,3.811]
[1748595782648,3.23495,2623.1,2623.0,4.57318]
[1748595782848,3.23495,2623.1,2623.0,3.811]
[1748595783349,3.23495,2623.1,2623.0,4.57318]
[1748595783738,3.23495,2623.1,2622.8,3.21352661]
[1748595783739,0.76221,2622.9,2622.8,3.21352661]
[1748595783945,3.97001,2622.9,2622.8,0.00572661]
[1748595784138,0.76238,2622.3,2622.2,3.811]
[1748595784344,0.76238,2622.4,2622.3,0.76237]
[1748595784545,3.37355,2622.5,2622.4,0.76235]
[1748595784851,0.76236,2622.4,2622.3,0.76236]
[1748595785050,0.76238,2622.3,2622.2,3.811]
[1748595785246,2.08497,2622.4,2622.2,3.811]
[1748595785446,2.08497,2622.4,2622.3,0.76238]
[1748595785643,1.3226,2622.4,2622.3,0.76238]
[1748595785847,2.08495,2622.4,2622.3,0.76238]
[1748595786049,0.76238,2622.3,2622.2,3.811]
[1748595786254,1.3226,2622.3,2622.2,4.57341]
[1748595786457,2.08498,2622.3,2622.2,4.57341]
[1748595787651,1.3226,2622.3,2622.2,4.57341]
[1748595788645,2.08498,2622.3,2622.2,4.57341]
[1748595789246,1.3226,2622.3,2622.2,4.57341]
[1748595789659,3.2078,2622.4,2622.3,0.76238]
[1748595789963,0.00572661,2622.6,2622.5,0.76232]
[1748595790952,0.00572661,2622.6,2622.5,1.96952]
[1748595792460,0.00572661,2622.6,2622.5,0.76232]
[1748595792657,0.76235,2622.5,2622.4,3.808]
[1748595792849,1.26852661,2622.6,2622.4,4.57035]
[1748595793158,2.03083661,2622.6,2622.5,0.76232]
[1748595793357,0.00572661,2622.6,2622.5,0.76232]
[1748595793963,0.76802661,2622.6,2622.5,0.76232]
[1748595794664,0.00572661,2622.6,2622.5,0.76232]
[1748595795867,0.76802661,2622.6,2622.5,0.76232]
[1748595796166,0.76802661,2622.6,2622.1,5.11961661]
[1748595796167,0.76238,2622.3,2622.2,4.57039]
[1748595796970,0.76237,2622.4,2622.3,0.76235]
[1748595798066,0.76235,2622.5,2622.4,0.76233]
[1748595798666,2.07103661,2622.6,2622.5,0.76232]
[1748595799468,0.76233,2622.5,2622.4,0.76234]
[1748595800368,0.76235,2622.4,2622.3,1.97516]
[1748595800669,0.76238,2622.3,2622.1,3.21352661]
[1748595800872,0.76238,2622.3,2622.2,3.808]
[1748595801072,3.21449661,2622.6,2622.1,3.97594661]
[1748595801073,0.76241,2622.2,2622.1,0.00572661]
[1748595801267,0.76241,2622.2,2622.1,3.81372661]
[1748595801869,2.06381,2622.2,2622.1,3.81372661]
[1748595802274,2.06381,2622.2,2622.1,0.00572661]
[1748595803271,11.32764085,2622.2,2622.1,0.00572661]
[1748595803473,6.32764085,2622.2,2622.1,0.00572661]
[1748595804379,5.27161,2622.2,2622.1,0.00572661]
[1748595805874,11.32677237,2622.2,2622.1,0.00572661]
[1748595806072,0.76259,2621.6,2621.5,7.0158]
[1748595806473,0.76259,2621.6,2621.5,7.77841]
[1748595806981,1.9553,2621.7,2621.6,0.76259]
[1748595807278,0.6609,2621.7,2621.6,0.76259]
[1748595807480,1.2944,2622.0,2621.9,0.7625]
[1748595807881,0.7625,2622.0,2621.9,0.7625]
[1748595808179,0.76252,2621.9,2621.8,0.76251]
[1748595809178,0.76249,2622.0,2621.9,0.76248]
[1748595809378,0.7625,2621.9,2621.8,2.06251]
[1748595809580,0.76249,2622.0,2621.9,0.76248]
[1748595809978,0.7625,2621.9,2621.8,2.06251]
[1748595810176,0.7625,2621.9,2621.8,1.3]
[1748595810377,0.7625,2621.9,2621.8,2.06253]
[1748595811175,0.7625,2621.9,2621.8,1.3]
[1748595811774,5.1501,2622.2,2621.8,1.3]
[1748595811976,3.27773857,2622.5,2621.9,3.808]
[1748595812186,0.76244,2622.2,2622.1,0.76244]
[1748595812874,0.76244,2622.1,2622.0,2.03665]
[1748595813484,0.7624,2622.3,2622.2,0.7624]
[1748595813784,0.953,2622.3,2622.2,0.7624]
[1748595814186,0.76244,2622.2,2622.1,0.76243]
[1748595814380,0.1906,2622.3,2622.2,0.76241]
[1748595815086,0.1906,2622.3,2622.2,2.65461]
[1748595815678,0.26053857,2622.3,2622.2,2.65461]
[1748595816878,0.26053857,2622.3,2622.2,7.65461]
[1748595817483,0.00572661,2622.6,2622.5,0.76232]
[1748595817687,0.00572661,2622.6,2622.5,7.77812]
[1748595818286,0.00572661,2622.6,2622.5,8.40042]
[1748595818789,3.2078,2623.1,2623.0,0.76218]
[1748595818981,0.76211,2623.3,2623.2,0.76212]
[1748595819485,3.34939,2623.4,2623.3,0.76209]
[1748595819787,0.00572661,2623.5,2623.4,0.76206]
[1748595820088,0.00572661,2623.5,2623.4,4.57006]
[1748595820685,0.76775661,2623.5,2623.4,3.808]
[1748595821483,0.76775661,2623.5,2623.4,4.57006]
[1748595821888,0.00572661,2623.5,2623.4,4.57006]
[1748595822085,0.00572661,2623.5,2623.4,7.77786]
[1748595826994,0.76178,2624.5,2624.4,0.76176]
[1748595827288,0.76178,2624.5,2624.4,4.56576]
[1748595827491,0.76172,2624.6,2624.5,0.76174]
[1748595827788,1.2278,2624.6,2624.5,0.76174]
[1748595827987,1.98953,2624.6,2624.5,0.76174]
[1748595828186,0.76174,2624.5,2624.4,4.56575]
[1748595828992,0.76177,2624.4,2624.3,3.80871548]
[1748595829186,2.08827,2624.4,2624.3,3.80871548]
[1748595830294,2.08827,2624.4,2624.3,0.00571548]
[1748595832191,7.08827,2624.4,2624.3,0.00571548]
[1748595833394,0.76198,2623.7,2623.6,2.69898]
[1748595833589,0.76198,2623.7,2623.6,6.50198]
[1748595833899,1.90483,2623.9,2623.1,3.2078]
[1748595834195,2.0051,2623.6,2623.5,3.803]
[1748595834386,5.2129,2623.6,2623.5,3.803]
[1748595835895,0.76206,2623.4,2623.3,3.80871548]
[1748595836489,2.01236,2623.4,2623.3,3.80871548]
[1748595836990,1.2503,2623.4,2623.3,4.57080548]
[1748595837196,1.39773,2623.5,2623.4,0.76206]
[1748595837693,2.64803,2623.5,2623.4,0.76206]
[1748595837899,1.886,2623.5,2623.4,0.76206]
[1748595838796,0.76201,2623.6,2623.5,0.76203]
[1748595838997,5.1078,2623.9,2623.7,0.76195]
[1748595839193,5.86973,2623.9,2623.8,0.76195]
[1748595839987,0.76195,2623.8,2623.7,4.56496]
[1748595840396,3.8388,2623.9,2623.8,0.76195]
[1748595840795,3.8388,2623.9,2623.7,4.56495]
[1748595840994,0.76195,2623.8,2623.7,4.56495]
[1748595841401,0.76195,2623.8,2623.7,3.803]
[1748595841902,6.9602,2623.9,2623.4,3.96985]
[1748595842104,6.9602,2623.9,2623.4,3.96986]
[1748595842105,0.76203,2623.5,2623.4,3.96986]
[1748595842298,0.76203,2623.5,2623.4,7.77286]
[1748595842501,0.76203,2623.5,2623.4,7.0108]
[1748595842698,0.76203,2623.5,2623.4,7.77286]
[1748595843201,0.76203,2623.5,2623.4,3.803]
[1748595843396,0.76203,2623.5,2623.3,0.76780548]
[1748595843397,0.76206,2623.4,2623.3,0.00571548]
[1748595843595,0.76206,2623.4,2623.3,3.80871548]